Cogmind - Beta 11.1 @@@ ROGUE MODE // 2022.05.10 @ 11:08:54 Player: Zeldest Result: Self-destructed Performance ------------- Evolutions (2) 1000 Regions Visited (5) 1000 Robots Destroyed (15) 75 Value Destroyed (306) 306 Prototype IDs (1) 20 Alien Tech Used (0) 0 Bonus (300) 300 TOTAL SCORE: 2701 Bonus ------- Aligned with FarCom 300 Cogmind --------- Core Integrity 550/550 Matter 300/300 Energy 248/250 System Corruption 0% Temperature Cool (0) Movement Rolling (80) Location -8/Materials Parts ------- > --- POWER (1) -------- Ion Engine > --- PROPULSION (2) --- Wheel Wheel > --- UTILITY (6) ------ (None) > --- WEAPON (2) ------- Assault Rifle Light Assault Rifle > --- INVENTORY (5) ---- (None) Peak State ------------ > --- POWER ------------ Ion Engine > --- PROPULSION ------- Wheel Wheel > --- UTILITY ---------- High-capacity Storage Unit Experimental Sensor Array > --- WEAPON ----------- Assault Rifle Light Assault Rifle > --- INVENTORY -------- Ion Engine Light Ion Engine Wheel Wheel Wheel Compact Wheel Huge Storage Unit Weight Redist. System Improved Signal Interpreter Terrain Scan Processor Seismic Detector Tractor Beam Army-in-a-Box Grenade Launcher Mining Laser [Rating: 22] Favorites ----------- Power Light Ion Engine Engine Light Ion Engine Propulsion Wheel Wheel Wheel Utility Improved Terrain Scanner Device Improved Terrain Scanner Storage High-capacity Storage Unit Weapon Assault Rifle Ballistic Gun Assault Rifle Build | -11 -10 -10 -10 -9 -8 ------- Run | Scr Mat Min Exi Min Mat Slots Evolved 4 | . . . . . 4 Power . | . . . . . . Propulsion . | . . . . . . Utility 4 | . . . . . 4 Weapon . | . . . . . . Parts Attached 15 | 8 1 3 . 3 . Power 2 | 1 . . . 1 . Engine 2 | 1 . . . 1 . Core . | . . . . . . Reactor . | . . . . . . Propulsion 6 | 2 . 3 . 1 . Treads . | . . . . . . Leg . | . . . . . . Wheel 6 | 2 . 3 . 1 . Hover . | . . . . . . Flight . | . . . . . . Utility 5 | 3 1 . . 1 . Device 3 | 2 . . . 1 . Storage 2 | 1 1 . . . . Processor . | . . . . . . Hackware . | . . . . . . Protection . | . . . . . . Artifact . | . . . . . . Weapon 2 | 2 . . . . . Energy Gun . | . . . . . . Energy Cannon . | . . . . . . Ballistic Gun 2 | 2 . . . . . Ballistic Cannon . | . . . . . . Launcher . | . . . . . . Special Weapon . | . . . . . . Impact Weapon . | . . . . . . Slashing Weapon . | . . . . . . Piercing Weapon . | . . . . . . Special Melee Weapon . | . . . . . . Unidentified Prototypes 1 | . . . . 1 . Parts Lost 8 | . . 1 . 2 5 Power 2 | . . . . 1 1 Propulsion 4 | . . 1 . 1 2 Utility 2 | . . . . . 2 Weapon . | . . . . . . Highest Loss Streak 5 | . . 1 . 2 5 To Critical Strikes . | . . . . . . Average Slot Usage (%) 97 | . 100 94 100 98 57 Engine 13 | . 14 14 14 13 9 Wheel 26 | . 28 23 28 27 18 Device 13 | . 14 14 14 14 6 Storage 13 | . 14 14 14 14 6 Ballistic Gun 27 | . 28 28 28 28 18 Naked Turns . | . . . . . . Heaviest Build 49 | 12 47 47 47 49 49 Greatest Support 26 | 26 26 26 20 20 20 Greatest Overweight (x) 4 | . 1 2 2 4 2 Average Overweight (x) 1 | . . 1 2 2 1 Largest Inventory Capacity 20 | 8 20 20 20 20 20 Average Capacity 18 | 7 17 20 20 20 13 Most Carried 20 | 8 11 16 20 20 20 Average Carried 12 | 4 8 12 17 18 11 Final Capacity 20 | 8 20 20 20 20 5 Final Carried 20 | 8 11 16 20 19 . Class Distribution -------------------- 77% | Mutant 22% | Skirmisher Dominant Class ---------------- Mutant | -10/Materials Mutant | -10/Mines Mutant | -10/Exiles Skirmisher | -9/Mines Skirmisher | -8/Materials Resources | -11 -10 -10 -10 -9 -8 ----------- Run | Scr Mat Min Exi Min Mat Matter Collected 528 | 240 162 81 . 45 . Remotely . | . . . . . . Salvage Created 430 | 30 270 95 . 35 . Parts 32 | 8 17 3 . 4 . Haulers Intercepted 1 | . 1 . . . . Recyclers Shooed . | . . . . . . Parts Field Recycled . | . . . . . . Retrieved Matter . | . . . . . . Parts Self-Destructed . | . . . . . . Prevented . | . . . . . . Kills | -11 -10 -10 -10 -9 -8 ------- Run | Scr Mat Min Exi Min Mat Combat Hostiles Destroyed 14 | . 7 4 . 3 . Guns 14 | . 7 4 . 3 . Classes Destroyed 5 | 1 3 1 . . . Tunneler 2 | 2 . . . . . Hauler 1 | . 1 . . . . Swarmer 6 | . 3 . . 3 . Grunt 6 | . 4 2 . . . Assembled 2 | . . 2 . . . Best Kill Streak 3 | 2 3 2 . 3 . Combat Bots Only 3 | . 3 2 . 3 . Max Kills in Single Turn 2 | 1 1 1 . 2 . Gunslinging 1 | . . . . 1 . Exploded . | . . . . . . Melee . | . . . . . . Uniques/NPCs Destroyed . | . . . . . . Combat | -11 -10 -10 -10 -9 -8 -------- Run | Scr Mat Min Exi Min Mat Damage Taken 506 | . 135 247 . 124 . Core 148 | . 22 87 . 39 . Absorbed by Shields . | . . . . . . Core Remaining (%) 70 | 100 . . . 40 . Volleys Fired 48 | 13 15 14 . 6 . Largest 2 | 2 2 2 . 2 . Hottest 40 | 40 40 40 . 40 . Shots Fired 96 | 26 30 28 . 12 . Gun 96 | 26 30 28 . 12 . Cannon . | . . . . . . Launcher . | . . . . . . Special . | . . . . . . Kinetic 96 | 26 30 28 . 12 . Thermal . | . . . . . . Explosive . | . . . . . . Electromagnetic . | . . . . . . Robot Hit Streak 8 | 4 8 5 . 2 . Robot Miss Streak 3 | 2 2 3 . 2 . Penetration Max . | . . . . . . Secondary Targets 4 | . 1 1 . 2 . Max Gunslinging Chain 1 | . 1 1 . 1 . Shots Hit Robots 53 | 11 19 16 . 7 . Core Hits 28 | 4 13 8 . 3 . Critical Kills . | . . . . . . Critical Parts Destroyed . | . . . . . . Critical Strikes . | . . . . . . Melee Attacks . | . . . . . . Impact . | . . . . . . Slashing . | . . . . . . Piercing . | . . . . . . Sneak Attacks . | . . . . . . Combat Hostiles . | . . . . . . Follow-up Attacks . | . . . . . . Damage Inflicted 589 | 120 214 180 . 75 . Guns 589 | 120 214 180 . 75 . Cannons . | . . . . . . Explosions . | . . . . . . Melee . | . . . . . . Ramming . | . . . . . . Kinetic 589 | 120 214 180 . 75 . Thermal . | . . . . . . Explosive . | . . . . . . Electromagnetic . | . . . . . . Impact . | . . . . . . Slashing . | . . . . . . Piercing . | . . . . . . Highest Corruption . | . . . . . . Average Corruption . | . . . . . . Corruption Purged . | . . . . . . Corruption Blocked . | . . . . . . Overload Shots . | . . . . . . Overflow Damage . | . . . . . . Projectiles . | . . . . . . Explosions . | . . . . . . Melee . | . . . . . . Knockbacks . | . . . . . . Impact . | . . . . . . Kinetic . | . . . . . . Secondary . | . . . . . . Self-Inflicted Damage . | . . . . . . Shots . | . . . . . . Rammed . | . . . . . . Targets Rammed . | . . . . . . Kicked . | . . . . . . Crushed . | . . . . . . Highest Temperature 22 | . 9 22 . . . Average Temperature 7 | . 7 8 . . . Received Heat Transfer 138 | . 36 102 . . . Siege Activations . | . . . . . . Robots Corrupted . | . . . . . . Combat Hostiles . | . . . . . . Parts Fried . | . . . . . . Impact Corruptions . | . . . . . . Robots Melted . | . . . . . . Combat Hostiles . | . . . . . . Parts Melted . | . . . . . . Heat Transferred . | . . . . . . Parts Sabotaged . | . . . . . . Parts Stolen . | . . . . . . Parts Stripped . | . . . . . . Power Chain Reactions . | . . . . . . Missiles Intercepted . | . . . . . . Alert | -11 -10 -10 -10 -9 -8 ------- Run | Scr Mat Min Exi Min Mat Peak Influence 260 | 10 260 50 . 75 14 Initial 6 | . 6 2 . . . Average 67 | 3 98 45 . 56 3 Maximum Alert Level 1 | . 1 . . . . Low Security (%) 92 | 100 82 100 . 100 100 Level 1 7 | . 17 . . . . Level 2 . | . . . . . . Level 3 . | . . . . . . Level 4 . | . . . . . . Level 5 . | . . . . . . High Security . | . . . . . . Max Security . | . . . . . . Squads Dispatched . | . . . . . . Investigation . | . . . . . . Extermination . | . . . . . . Reinforcement . | . . . . . . Assault . | . . . . . . Garrison . | . . . . . . Intercept . | . . . . . . Searches Triggered . | . . . . . . Construction Impeded . | . . . . . . Haulers Reinforced . | . . . . . . Active Scanning Responses . | . . . . . . Cargo Convoy Interrupts . | . . . . . . Stealth | -11 -10 -10 -10 -9 -8 --------- Run | Scr Mat Min Exi Min Mat Distress Signals 1 | . . 1 . . . Communications Jammed . | . . . . . . Distress Signals . | . . . . . . Times Spotted 21 | . 14 4 . 3 . Peak Tracking Total 5 | . 5 2 . 3 . Tactical Retreats . | . . . . . . Traps | -11 -10 -10 -10 -9 -8 ------- Run | Scr Mat Min Exi Min Mat Traps Triggered . | . . . . . . Indirectly . | . . . . . . Trap Hack Attempts . | . . . . . . Triggered . | . . . . . . Disarmed . | . . . . . . Reprogrammed . | . . . . . . Reused . | . . . . . . Traps Extracted . | . . . . . . Installed . | . . . . . . Triggered . | . . . . . . Machines | -11 -10 -10 -10 -9 -8 ---------- Run | Scr Mat Min Exi Min Mat Machines Disabled . | . . . . . . Max in Single Turn . | . . . . . . Machines Sabotaged . | . . . . . . Garrisons Compromised . | . . . . . . Overloaded Fab Kills . | . . . . . . Hacking | -11 -10 -10 -10 -9 -8 --------- Run | Scr Mat Min Exi Min Mat Machines Accessed 10 | . 6 . 2 1 1 Terminals 8 | . 6 . . 1 1 Fabricators . | . . . . . . Repair Stations . | . . . . . . Recycling Units . | . . . . . . Scanalyzers . | . . . . . . Garrison Access . | . . . . . . Total Hacks 64 | . 22 . 33 7 2 Successful 48 | . 12 . 33 2 1 Failed 16 | . 10 . . 5 1 Catastrophic 2 | . 1 . . . 1 Database Lockouts . | . . . . . . Manual 32 | . 22 . 1 7 2 Terminals 31 | . 22 . . 7 2 Fabricators . | . . . . . . Repair Stations . | . . . . . . Recycling Units . | . . . . . . Scanalyzers . | . . . . . . Garrison Access . | . . . . . . Terminal Hacks 37 | . 3 . 33 1 . Record 33 | . . . 33 . . Terminal Index 1 | . 1 . . . . Unreport Threat 1 | . 1 . . . . Zone Layout 2 | . 1 . . 1 . Fabricator Hacks . | . . . . . . Repair Station Hacks . | . . . . . . Recycling Unit Hacks . | . . . . . . Scanalyzer . | . . . . . . Garrison Access Hacks . | . . . . . . Unauthorized Hacks 11 | . 9 . . 1 1 Terminals 11 | . 9 . . 1 1 Assimilate 2 | . 2 . . . . Botnet 7 | . 5 . . 1 1 Operators 2 | . 2 . . . . Fabricators . | . . . . . . Repair Stations . | . . . . . . Recycling Units . | . . . . . . Scanalyzers . | . . . . . . Garrison Access . | . . . . . . Data Cores Recovered . | . . . . . . Used . | . . . . . . Hacking Detections 7 | . 5 . . 1 1 Full Trace Events 1 | . 1 . . . . Feedback Events . | . . . . . . Feedback Blocked . | . . . . . . Robot Schematics Acquired . | . . . . . . Robots Built . | . . . . . . Authchips . | . . . . . . Time . | . . . . . . Total Robot Build Rating . | . . . . . . Part Schematics Acquired . | . . . . . . Parts Built . | . . . . . . Authchips . | . . . . . . Time . | . . . . . . Total Part Build Rating . | . . . . . . Parts Repaired . | . . . . . . Time . | . . . . . . Parts Recycled . | . . . . . . Recycled Matter . | . . . . . . Retrieved Matter . | . . . . . . Retrieved Components . | . . . . . . Parts Scanalyzed . | . . . . . . Part Schematics Acquired . | . . . . . . Parts Damaged . | . . . . . . Bothacking | -11 -10 -10 -10 -9 -8 ------------ Run | Scr Mat Min Exi Min Mat Used RIF Installer . | . . . . . . Robots Hacked . | . . . . . . Non-combat . | . . . . . . Combat . | . . . . . . Robot Hacks Applied . | . . . . . . Relay Couplers Released . | . . . . . . Fabnet Peak Effective % . | . . . . . . Robots Rewired . | . . . . . . Allies Hacked . | . . . . . . Hacks Repelled . | . . . . . . Allies | -11 -10 -10 -10 -9 -8 -------- Run | Scr Mat Min Exi Min Mat Total Allies 3 | . . 3 . . . Largest Group 3 | . . 3 . . . Highest-Rated Group 40 | . . 40 . . . Highest-Rated Ally 16 | . . 16 . . . Total Orders . | . . . . . . Ally Attacks 2 | . . 2 . . . Total Damage . | . . . . . . Kills . | . . . . . . Allies Corrupted . | . . . . . . Allies Melted . | . . . . . . Intel | -11 -10 -10 -10 -9 -8 ------- Run | Scr Mat Min Exi Min Mat Robot Analysis Total . | . . . . . . Derelict Logs Recovered 2 | . . 1 . 1 . Drone Launches . | . . . . . . Drone Recoveries . | . . . . . . Exploration | -11 -10 -10 -10 -9 -8 ------------- Run | Scr Mat Min Exi Min Mat Turns Passed 1906 | 123 698 344 299 406 36 Spaces Moved 1489 | 68 543 228 271 345 34 Core 4 | 4 . . . . . Treads . | . . . . . . Legs . | . . . . . . Wheels 1485 | 64 543 228 271 345 34 Hover . | . . . . . . Flight . | . . . . . . Fastest Speed 50 | 50 90 105 110 110 80 Average Speed 106 | 87 101 116 110 110 95 Slowest Speed 140 | 90 105 130 110 140 110 Overloaded Moves . | . . . . . . Propulsion Burnouts . | . . . . . . Robots Hopped . | . . . . . . Cave-ins Triggered . | . . . . . . Exploration Rate (%) 43 | 6 75 44 63 72 2 Regions Visited 5 Branch Regions 3 Pre-discovered Areas 1 | . . . 1 . . Known Exits Taken . | . . . . . . Unknown Exits Taken 5 | 1 1 1 1 1 . Scrap Searched 2 | . . . . 2 . Spaces Dug . | . . . . . . Terrain Destroyed . | . . . . . . Melee . | . . . . . . Projectile . | . . . . . . AOE . | . . . . . . Terrain Rammed . | . . . . . . Walls Destroyed . | . . . . . . Machines Disabled . | . . . . . . Actions | -11 -10 -10 -10 -9 -8 --------- Run | Scr Mat Min Exi Min Mat Total 1722 | 109 661 280 273 360 39 Wait 126 | . 94 28 . 4 . Move 1484 | 67 542 227 270 344 34 Hop . | . . . . . . Pick Up 36 | 18 6 7 1 2 2 Fast Attach . | . . . . . . Attach 12 | 8 . 1 . 3 . Detach . | . . . . . . Swap 3 | . 1 2 . . . Drop 13 | 3 3 1 2 1 3 Fire 48 | 13 15 14 . 6 . Melee . | . . . . . . Ram . | . . . . . . Kick . | . . . . . . Crush . | . . . . . . Escape Stasis . | . . . . . . Rewire . | . . . . . . Trap . | . . . . . . Miscellaneous . | . . . . . . Route ------- -11/Scrapyard -10/Materials (discovered 4 exits: [*Mat x3] / [*Min]) -10/Mines (discovered 2 exits: [*Mat] / *Exi) -10/Exiles (discovered 2 exits: *Min x2) -9/Mines -8/Materials History --------- Turn | Location | Event 20 | -11/Scrapyard | Discovered new exit (range 15) 124 | -11/Scrapyard | Entered Materials 302 | -10/Materials | Discovered new exit (range 9) 315 | -10/Materials | Build established: Mutant 432 | -10/Materials | Discovered new exit (range 16) 540 | -10/Materials | Discovered new exit (range 15) 661 | -10/Materials | Discovered new exit (range 8) 822 | -10/Materials | Entered Mines 823 | -10/Mines | Assembled infested the area 824 | -10/Mines | Assisted by bots powering up and referring to "LRC-V3" 828 | -10/Mines | Assisted by a Guerilla fighting off Assembled 1121 | -10/Mines | Discovered new exit (range 9) 1157 | -10/Mines | Learned Materials stockpile data 1162 | -10/Mines | Deemed a non-threat by the Exiles lab entrance 1162 | -10/Mines | Discovered new exit (range 5) 1166 | -10/Mines | Entered Exiles 1181 | -10/Exiles | Discovered new exit (range 15) 1192 | -10/Exiles | Met 8R-AWN 1212 | -10/Exiles | Met EX-HEX 1245 | -10/Exiles | Met EX-BIN 1261 | -10/Exiles | Aligned with FarCom system 1262 | -10/Exiles | Given EX-Vault access code 1297 | -10/Exiles | Opened EX-Vault 1319 | -10/Exiles | Found Prototype Device 1346 | -10/Exiles | Warned to stay clear of 0b10 Research branches 1377 | -10/Exiles | Met EX-DEC 1408 | -10/Exiles | Learned location of Zion (-7) 1454 | -10/Exiles | Discovered new exit (range 12) 1465 | -10/Exiles | Left Exiles lab with Army-in-a-Box 1465 | -10/Exiles | Entered Mines 1547 | -9/Mines | Core integrity fell below 50% 1771 | -9/Mines | Build established: Skirmisher 1771 | -9/Mines | Learned Materials terminal intel 1771 | -9/Mines | Discovered new exit (range 6) 1825 | -9/Mines | Found a damaged Exp. Sensor Array with a note attached 1827 | -9/Mines | Found Prototype Device 1829 | -9/Mines | Identified Exp. Sensor Array 1871 | -9/Mines | Entered Materials 1871 | -8/Materials | Evolved 4 slots: Utility x4 1873 | -8/Materials | Loaded intel: 11 terminal locations 1907 | -8/Materials | Self-destructed Last Messages --------------- Loading Materials stockpile data (x4)... Loading Materials terminal intel (x11)... 01884_ Connecting with Terminal... 01884_ Current location identified: Materials >>Trojan(Botnet) Trojan loaded successfully. Testing... Terminal linked with 0 systems. Awaiting botnet instructions. 01888_ Acquired Imp. Signal Interpreter. 01891_ Dropped Exp. Sensor Array. 01892_ Dropped Hcp. Storage Unit. 01892_ Com. Wheel crushed and broken. 01892_ Lgt. Ion Engine crushed and broken. 01892_ Wheel crushed and broken. 01892_ Seismic Detector crushed and broken. 01892_ Prototype Device crushed and broken. 01899_ K-01 Serf collects debris. 01905_ Acquired Huge Storage Unit. 01906_ Dropped Huge Storage Unit. Map ----- +----------------------------------------------------+ | | | | | | | | | | | | | | | | | | | | | ?????????????????????????????????????????????????? | | ?????????????????????????????????????????????????? | | ?????????????????????????????????????????????????? | | ?????????????????????????????????????????????????? | | ?????????????????????????????????????????????????? | | ?????????????????????????????????????????????????? | | ?????????????????????????????????????????????????? | | ?????????????????????????????????????????????????? | | ?????????##################+####?????????????????? | | ?????????# #?????????????????? | | ?????????# #?????????????????? | | ?????????# #?????????????????? | | ?????????####o######+####### #?????????????????? | | ?????????????????# k!==|#??????????????????????? | | ??????????T??????# !*!]!#??????????????????????? | | ?????????????????# ""T""@#??????????????????????? | | ?????????????????# """""!#??????????????????????? | | ?????????????????##########??????????????????????? | | ?????????????????????????????????????????????????? | | ?????????????????????????????????????????????????? | | ?????????????????????????????????????????????????? | | ?????????????????????????????????????????????????? | | ?????????????????????????????????????????????????? | | ?????????????????????????????????????????????????? | | ?????????????????????????????????????????????????? | | ?????????????????????????????????????????????????? | | ?????????????????????????????????????????????????? | | ?????????????????????????????????????????????????? | | ??????????????????????????????h??????????????????? | | ?????????????????????????????????????????????????? | | ?????????????????????????????????????????????????? | | ?????????????????????????????????????????????????? | | ?????????????????????????????????????????????????? | | ?????????????????????????????????????????????????? | | ?????????????????????????????????????????????????? | | ?????????????????????????????????????????????????? | | ?????????????????????????????????????????????????? | | ?????????????????????????????????????????????????? | | ?????????????????????????????????????????????????? | | ?????????????????????????????????????????????????? | +----------------------------------------------------+ Best States ------------- Heat Dissipation 31 Energy Generation 10 Energy Capacity 250 Matter Stores 300 Matter Capacity 300 Sight Range 16 Robot Scan Range 20 Terrain Scan Range 16 Terrain Scan Density 10 Evasion (%) 44 Item Schematics ----------------- None Robot Schematics ------------------ None Fabricated ------------ Nothing Alien Tech Used ----------------- None Achievements -------------- None Challenges ------------ None Game ------ Seed SupersonicHybridTendrils Manual? 0 Play Time 00:19:20 Cumulative 28.7 hours Start 2022.05.10 @ 10:41:11 End 2022.05.10 @ 11:08:54 Sessions 1 Manual Loads 0 Difficulty Rogue Special Mode None Game No. 62 Rogue 62 Adventurer 0 Explorer 0 Win Type - Total 0 Types 0/0/0/0/0/0/0/0/0 Lore% 22 Gallery% 28 Achievement% 24 Wizard Run 0 Options --------- ASCII 0 Keyboard 1 Movement Numpad Keybinds 0 Fullscreen 2 Font 18/SmallcapsGlow Map View 76x50 Tactical HUD 1 Map Filters NONE Filters NONE Steam 1 RUN: 42a8454b-004a-4db7-98ae-301f1e4a78d4